fUSD/lending_fUSD_20240118
["ID","MTS","AMOUNT","RATE_DAILY","PERIOD"]
[312027584,1705559452479,-772.89,0.00022459,2]
[312027585,1705559452489,-793.97,0.00022459,2]
[312027586,1705559452500,-500.0,0.00022459,2]
[312027587,1705559452509,-597.7,0.00022459,2]
[312027588,1705559452519,-500.0,0.00022459,2]
[312027589,1705559452529,-500.0,0.00022459,2]
[312027590,1705559452538,-9231.06,0.00022459,2]
[312027591,1705559452548,-500.0,0.00022459,2]
[312027592,1705559452557,-500.0,0.00022459,2]
[312027593,1705559452567,-500.0,0.00022459,2]
[312027594,1705559452576,-500.0,0.00022459,2]
[312027595,1705559452586,-500.0,0.00022459,2]
[312027596,1705559452596,-571.93,0.00022459,2]
[312027597,1705559452605,-808.86,0.00022459,2]
[312027598,1705559452614,-560.28,0.00022459,2]
[312027599,1705559452624,-500.0,0.00022459,2]
[312027600,1705559452634,-500.0,0.00022459,2]
[312027601,1705559452643,-500.0,0.00022459,2]
[312027602,1705559452733,-500.0,0.00022459,2]
[312027603,1705559452743,-1521.35,0.00022459,2]
[312027604,1705559452752,-500.0,0.00022459,2]
[312027605,1705559452762,-728.57,0.00022459,2]
[312027606,1705559452771,-500.0,0.00022459,2]
[312027607,1705559452780,-500.0,0.00022459,2]
[312027608,1705559452790,-500.0,0.00022459,2]
[312027609,1705559452799,-2124.29,0.00022459,2]
[312027610,1705559452807,-694.16,0.00022459,2]
[312027611,1705559452817,-500.0,0.00022459,2]
[312027612,1705559452826,-509.2068365,0.00022459,2]
[312027613,1705559452835,-3748.93,0.00022459,2]
[312027614,1705559452844,-500.0,0.00022459,2]
[312027615,1705559452853,-795.47,0.00022459,2]
[312027616,1705559452863,-500.0,0.00022459,2]
[312027617,1705559452872,-513.4620116,0.00022459,2]
[312027618,1705559452882,-500.0,0.00022459,2]
[312027619,1705559452891,-676.62,0.00022459,2]
[312027620,1705559452902,-878.36,0.00022459,2]
[312027621,1705559452912,-500.0,0.00022459,2]
[312027622,1705559452921,-500.0,0.00022459,2]
[312027623,1705559452931,-626.29,0.00022459,2]
[312027624,1705559452940,-500.0,0.00022459,2]
[312027625,1705559452950,-648.6923115,0.00022459,2]
[312027626,1705559452959,-500.0,0.00022459,2]
[312027627,1705559452968,-500.0,0.00022459,2]
[312027628,1705559452978,-712.58,0.00022459,2]
[312027629,1705559452987,-500.0,0.00022459,2]
[312027630,1705559452996,-555.18,0.00022459,2]
[312027631,1705559453006,-500.0,0.00022459,2]
[312027632,1705559453015,-535.78768443,0.00022459,2]
[312027633,1705559453025,-1323.03,0.00022459,2]
[312027634,1705559453035,-500.0,0.00022459,2]
[312027635,1705559453045,-500.0,0.00022459,2]
[312027636,1705559453054,-500.0,0.00022459,2]
[312027637,1705559453064,-500.0,0.00022459,2]
[312027638,1705559453073,-500.0,0.00022459,2]
[312027639,1705559453083,-500.0,0.00022459,2]
[312027640,1705559453092,-500.0,0.00022459,2]
[312027641,1705559453102,-1309.03,0.00022459,2]
[312027642,1705559453111,-500.0,0.00022459,2]
[312027643,1705559453120,-1131.98,0.00022459,2]
[312027644,1705559453130,-500.0,0.00022459,2]
[312027645,1705559453139,-976.8,0.00022459,2]
[312027646,1705559453149,-505.37832669,0.00022459,2]
[312027647,1705559453162,-500.0,0.00022459,2]
[312027648,1705559453172,-2040.07,0.00022459,2]
[312027649,1705559453182,-500.0,0.00022459,2]
[312027650,1705559453191,-500.0,0.00022459,2]
[312027651,1705559453200,-500.0,0.00022459,2]
[312027652,1705559453210,-500.0,0.00022459,2]
[312027653,1705559453219,-500.0,0.00022459,2]
[312027654,1705559453229,-500.0,0.00022459,2]
[312027655,1705559453239,-500.0,0.00022459,2]
[312027656,1705559453248,-500.0,0.00022459,2]
[312027657,1705559453257,-988.17,0.00022459,5]
[312027658,1705559453266,-526.97,0.00022459,2]
[312027659,1705559453276,-500.0,0.00022459,2]
[312027660,1705559453285,-500.0,0.00022459,2]
[312027661,1705559453296,-500.0,0.00022459,2]
[312027662,1705559453305,-500.0,0.00022459,2]
[312027663,1705559453314,-500.0,0.00022459,2]
[312027664,1705559453324,-500.0,0.00022459,2]
[312027665,1705559453333,-500.0,0.0002246,2]
[312027666,1705559453342,-500.0,0.0002246,2]
[312027667,1705559453351,-500.0,0.0002246,2]
[312027668,1705559453361,-500.0,0.0002246,2]
[312027669,1705559453370,-500.0,0.0002246,2]
[312027670,1705559453379,-500.0,0.0002246,2]
[312027671,1705559453388,-534.86,0.0002246,2]
[312027672,1705559453399,-631.4,0.0002246,2]
[312027673,1705559453408,-249.3420925,0.0002246,2]
[312027674,1705559453417,-629.28,0.0002246,2]
[312027675,1705559453426,-500.0,0.0002246,2]
[312027676,1705559453435,-500.0,0.0002246,2]
[312027677,1705559453445,-500.0,0.0002246,2]
[312027678,1705559453454,-500.0,0.0002246,2]
[312027679,1705559453463,-500.0,0.0002246,2]
[312027680,1705559453472,-519.4,0.0002246,2]
[312027681,1705559453481,-500.0,0.0002246,2]
[312027682,1705559453490,-500.0,0.0002246,2]
[312027683,1705559453500,-500.0,0.0002246,2]
[312027684,1705559453510,-500.0,0.0002246,2]
[312027685,1705559453519,-500.0,0.0002246,2]
[312027686,1705559453529,-597.56,0.0002246,2]
[312027687,1705559453538,-500.0,0.0002246,2]
[312027688,1705559453548,-500.0,0.0002246,2]
[312027689,1705559453557,-500.0,0.0002246,2]
[312027690,1705559453567,-500.0,0.0002246,2]
[312027691,1705559453576,-500.0,0.0002246,2]
[312027692,1705559453586,-500.0,0.0002246,2]
[312027693,1705559453597,-500.0,0.0002246,2]
[312027694,1705559453607,-500.0,0.0002246,2]
[312027695,1705559453617,-500.0,0.0002246,2]
[312027696,1705559453627,-589.38,0.0002246,2]
[312027697,1705559453636,-500.0,0.0002246,2]
[312027698,1705559453646,-500.0,0.0002246,2]
[312027699,1705559453657,-500.0,0.0002246,2]
[312027700,1705559453666,-500.0,0.0002246,2]
[312027701,1705559453676,-500.0,0.0002246,2]
[312027702,1705559453686,-500.0,0.0002246,2]
[312027703,1705559453697,-536.5,0.0002246,2]
[312027704,1705559453706,-500.0,0.0002246,2]
[312027705,1705559453715,-500.0,0.0002246,2]
[312027706,1705559453725,-500.0,0.0002246,2]
[312027707,1705559453737,-500.0,0.0002246,2]
[312027708,1705559453747,-500.0,0.0002246,2]
[312027709,1705559453757,-500.0,0.0002246,2]
[312027710,1705559453767,-500.0,0.0002246,2]
[312027711,1705559453778,-500.0,0.0002246,2]
[312027712,1705559453788,-3668.27,0.0002246,2]
[312027713,1705559453798,-500.0,0.0002246,2]
[312027714,1705559453809,-500.0,0.0002246,2]
[312027715,1705559453821,-500.0,0.0002246,2]
[312027716,1705559453832,-500.0,0.0002246,2]
[312027717,1705559453842,-500.0,0.0002246,2]
[312027718,1705559453854,-589.23494831,0.0002246,2]
[312027719,1705559453865,-660.0,0.0002246,2]
[312027720,1705559453875,-500.0,0.0002246,2]
[312027721,1705559453885,-500.0,0.0002246,2]
[312027722,1705559453895,-500.0,0.0002246,2]
[312027723,1705559453906,-500.0,0.0002246,2]
[312027724,1705559453917,-500.0,0.0002246,2]
[312027725,1705559453928,-500.0,0.0002246,2]
[312027726,1705559453938,-500.0,0.0002246,2]
[312027727,1705559453948,-500.0,0.0002246,2]
[312027728,1705559453957,-500.0,0.0002246,2]
[312027729,1705559453967,-500.0,0.0002246,2]
[312027730,1705559453977,-500.0,0.0002246,2]
[312027731,1705559453987,-500.0,0.0002246,2]
[312027732,1705559453997,-500.0,0.0002246,2]
[312027733,1705559454006,-500.0,0.0002246,2]
[312027734,1705559454016,-500.0,0.0002246,2]
[312027735,1705559454026,-500.0,0.0002246,2]
[312027736,1705559454037,-500.0,0.0002246,2]
[312027737,1705559454047,-500.0,0.0002246,2]
[312027738,1705559454057,-500.0,0.0002246,2]
[312027739,1705559454067,-350.0,0.0002246,7]
[312027740,1705559454077,-500.0,0.0002246,2]
[312027741,1705559454087,-350.0,0.0002246,7]
[312027742,1705559454096,-500.0,0.0002246,2]
[312027743,1705559454107,-500.0,0.0002246,2]
[312027744,1705559454117,-500.0,0.0002246,2]
[312027745,1705559454127,-500.0,0.0002246,2]
[312027746,1705559454138,-1024.28,0.0002246,2]
[312027747,1705559454154,-500.0,0.0002246,2]
[312027748,1705559454164,-500.0,0.0002246,2]
[312027749,1705559454175,-500.0,0.0002246,2]
[312027750,1705559454187,-500.0,0.0002246,2]
[312027751,1705559454198,-500.0,0.0002246,2]
[312027752,1705559454208,-639.24,0.0002246,2]
[312027753,1705559454219,-500.0,0.0002246,2]
[312027754,1705559454231,-500.0,0.0002246,2]
[312027755,1705559454242,-500.0,0.0002246,2]
[312027756,1705559454253,-500.0,0.0002246,2]
[312027757,1705559454263,-500.0,0.0002246,2]
[312027758,1705559454273,-500.0,0.0002246,2]
[312027759,1705559454285,-500.0,0.0002246,2]
[312027760,1705559454296,-587.60771804,0.0002246,2]
[312027761,1705559454306,-500.0,0.0002246,2]
[312027762,1705559454318,-570.76,0.0002246,2]
[312027763,1705559454329,-500.0,0.0002246,2]
[312027764,1705559454339,-912.33,0.0002246,2]
[312027765,1705559454350,-500.0,0.0002246,2]
[312027766,1705559454363,-1809.96,0.0002246,2]
[312027767,1705559454372,-530.70957321,0.0002246,2]
[312027768,1705559454382,-500.0,0.0002246,2]
[312027769,1705559454393,-500.0,0.0002246,2]
[312027770,1705559454404,-500.0,0.0002246,2]
[312027771,1705559454415,-500.0,0.0002246,2]
[312027772,1705559454426,-500.0,0.0002246,2]
[312027773,1705559454436,-500.0,0.0002246,2]
[312027774,1705559454447,-500.0,0.0002246,2]
[312027775,1705559454458,-500.0,0.0002246,2]
[312027776,1705559454468,-644.57,0.0002246,2]
[312027777,1705559454478,-500.0,0.0002246,2]
[312027778,1705559454488,-500.0,0.0002246,2]
[312027779,1705559454499,-715.75,0.0002246,2]
[312027780,1705559454510,-181.541894,0.0002246,7]
[312027781,1705559454521,-500.0,0.0002246,2]
[312027782,1705559454533,-269.31874361,0.0002246,2]
[312027783,1705559454544,-500.0,0.0002246,2]
[312027784,1705559454556,-500.0,0.0002246,2]
[312027785,1705559454566,-500.0,0.0002246,2]
[312027786,1705559454577,-500.0,0.0002246,2]
[312027787,1705559454588,-500.0,0.0002246,2]
[312027788,1705559454598,-500.0,0.0002246,2]
[312027789,1705559454609,-584.8,0.0002246,2]
[312027790,1705559454620,-700.84,0.0002246,2]
[312027791,1705559454630,-959.52,0.0002246,2]
[312027792,1705559454641,-500.0,0.00022461,2]
[312027793,1705559454654,-532.5054153,0.00022461,2]
[312027794,1705559454664,-500.0,0.00022461,2]
[312027795,1705559454674,-590.80263192,0.00022461,2]
[312027796,1705559454684,-500.0,0.00022461,2]
[312027797,1705559454694,-500.0,0.00022461,2]
[312027798,1705559454705,-500.0,0.00022461,2]
[312027799,1705559454715,-500.0,0.00022461,2]
[312027800,1705559454725,-500.0,0.00022461,2]
[312027801,1705559454735,-496.70646673,0.00022461,2]
[312027802,1705559454745,-396.84430158,0.00022461,2]
[312027803,1705559454755,-515.62,0.00022461,2]
[312027804,1705559454764,-500.0,0.00022461,2]
[312027805,1705559454775,-500.0,0.00022461,2]
[312027806,1705559454785,-500.0,0.00022461,2]
[312027807,1705559454795,-500.0,0.00022461,2]
[312027808,1705559454805,-500.0,0.00022461,2]
[312027809,1705559454815,-500.0,0.00022461,2]
[312027810,1705559454825,-500.0,0.00022461,2]
[312027811,1705559454835,-500.0,0.00022461,2]
[312027812,1705559454846,-500.0,0.00022461,2]
[312027813,1705559454856,-500.0,0.00022461,2]
[312027814,1705559454871,-556.06,0.00022461,2]
[312027815,1705559454886,-500.0,0.00022461,2]
[312027816,1705559454901,-500.0,0.00022461,2]
[312027817,1705559454915,-543.54,0.00022461,2]
[312027818,1705559454926,-500.0,0.00022461,2]
[312027819,1705559454938,-500.0,0.00022461,2]
[312027820,1705559454951,-500.0,0.00022461,2]
[312027821,1705559454965,-500.0,0.00022461,2]
[312027822,1705559454978,-500.0,0.00022461,2]
[312027823,1705559454991,-500.0,0.00022461,2]
[312027824,1705559455003,-500.0,0.00022461,2]
[312027825,1705559455017,-500.0,0.00022461,2]
[312027826,1705559455027,-500.0,0.00022461,2]
[312027827,1705559455040,-500.0,0.00022461,2]
[312027828,1705559455053,-500.0,0.00022461,2]
[312027829,1705559455065,-500.0,0.00022461,2]
[312027830,1705559455078,-500.0,0.00022461,2]
[312027831,1705559455090,-500.0,0.00022461,2]
[312027832,1705559455104,-500.0,0.00022461,2]
[312027833,1705559455117,-500.0,0.00022461,2]
[312027834,1705559455127,-500.0,0.00022461,2]
[312027835,1705559455141,-500.0,0.00022461,2]
[312027836,1705559455157,-500.0,0.00022461,2]
[312027837,1705559455170,-500.0,0.00022461,2]
[312027838,1705559455183,-500.0,0.00022461,2]
[312027839,1705559455197,-500.0,0.00022461,2]
[312027840,1705559455208,-500.0,0.00022461,2]
[312027841,1705559455221,-500.0,0.00022461,2]
[312027842,1705559455236,-500.0,0.00022461,2]
[312027843,1705559455249,-350.0,0.00022461,7]
[312027844,1705559455262,-350.0,0.00022461,7]
[312027845,1705559455276,-171.745961,0.00022461,7]
[312027846,1705559455289,-151.0,0.00022461,7]
[312027847,1705559455303,-159.69,0.00022474,2]
[312027848,1705559455314,-200.0,0.00022478,2]
[312027849,1705559455326,-203.69,0.00022491,2]
[312027850,1705559455337,-1048.05975451,0.00022498,2]
[312027851,1705559455348,-404.01534873,0.00022498,2]
[312027852,1705559455361,-2303.95324469,0.00022498,2]
[312027853,1705559455373,-2018.96995483,0.00022498,2]
[312027854,1705559455386,-1043.21340546,0.00022498,2]
[312027855,1705559455400,-200.0,0.00022498,2]
[312027856,1705559455411,-155.38382895,0.00022498,2]
[312027857,1705559455423,-699.92796011,0.00022498,2]
[312027858,1705559455433,-5394.40903155,0.00022498,2]
[312027859,1705559455445,-1522.02216991,0.00022498,2]
[312027860,1705559455456,-388.01220419,0.00022499,2]
[312027861,1705559455468,-212.70302285,0.00022499,2]
[312027862,1705559455479,-653.33275122,0.00022499,2]
[312027863,1705559455491,-150.01,0.00022499,2]
[312027864,1705559455502,-3296.21810704,0.00022499,2]
[312027865,1705559455514,-500.0,0.00022499,2]
[312027866,1705559455525,-500.0,0.00022499,2]
[312027867,1705559455537,-500.0,0.00022499,2]
[312027868,1705559455548,-500.0,0.00022499,2]
[312027869,1705559455560,-449.98339175,0.00022499,2]
[312027870,1705559455571,-444.88683615,0.00022499,2]
[312027871,1705559455582,-500.0,0.00022499,2]
[312027872,1705559455594,-500.0,0.00022499,2]
[312027873,1705559455606,-1118.43,0.00022499,2]
[312027874,1705559455617,-1118.43,0.00022499,2]
[312027875,1705559455628,-1028.0,0.000225,2]
[312027876,1705559455640,-133376.25633933,0.000225,2]
[312027877,1705559455653,-299807.19385,0.000225,2]
[312027878,1705559455664,-12240.31559135,0.000225,2]
[312027879,1705559455676,-16561.0071227,0.000225,2]
[312027880,1705559455687,-350.0,0.000225,7]
[312027881,1705559455699,-350.0,0.000225,7]
[312027882,1705559455710,-350.0,0.000225,7]
[312027883,1705559455722,-350.0,0.000225,7]
[312027884,1705559455734,-300.0,0.000225,2]
[312027885,1705559455745,-300.0,0.000225,2]
[312027886,1705559455757,-151.0,0.000225,7]
[312027887,1705559455770,-151.0,0.000225,7]
[312027888,1705559455781,-1118.43,0.00022501,2]
[312027889,1705559455792,-495180.69847437,0.00022501,3]
[312027890,1705559456230,-2017.64414718,0.00022501,3]
[312027891,1705559456804,-500.0,0.00022185,2]
[312027892,1705559456814,-508.0,0.00022399,2]
[312027893,1705559456825,-49356.77957899,0.00022501,3]
[312027894,1705559458285,-300423.47311009,0.00022501,3]
[312027895,1705559458302,-235.0,0.00022399,2]
[312027896,1705559458311,-10256.93218859,0.00022501,3]
[312027913,1705560555587,597.15,0.00018386,2]
[312027925,1705560632062,-220.43024859,0.00018791,2]
[312027926,1705560632073,-361.73818308,0.00018791,2]
[312027927,1705560632083,-207.0,0.00018792,2]
[312027928,1705560632092,-223.64875331,0.0001915,2]
[312027929,1705560632101,-2297.42810168,0.00019247,2]
[312027930,1705560632110,-155.0,0.00019248,2]
[312027931,1705560632120,-3190.67771766,0.00019248,2]
[312027932,1705560632130,-300.0,0.00019248,2]
[312027933,1705560632139,-286.6896523,0.00019249,2]
[312027934,1705560632148,-364.09538564,0.00019249,2]
[312027935,1705560632158,-315.42336003,0.0001925,2]
[312027936,1705560632170,-270.98804803,0.0001925,2]
[312027937,1705560632193,-879.76098058,0.00019249,2]
[312027938,1705560632205,-559.71247832,0.00019249,2]
[312027939,1705560632217,-546.06149217,0.00019249,2]
[312027940,1705560632229,-431.18512968,0.00019249,2]
[312027941,1705560632247,-811.88913259,0.00019249,2]
[312027942,1705560632268,-502.88675972,0.00019249,2]
[312027943,1705560632279,-338.81928543,0.00019249,2]
[312027946,1705560638048,-43004.73531426,0.00019248,2]
[312027947,1705560638060,-7116.36306622,0.00019249,2]
[312027948,1705560638091,-2461.16702176,0.00019249,2]
[312027949,1705560638106,-644.67000058,0.00019249,2]
[312027950,1705560638121,-731.0,0.00019249,2]
[312027951,1705560638170,-6237.00356573,0.00019249,2]
[312027952,1705560638186,-447.73413042,0.00019249,2]
[312027953,1705560638215,-11669.02432758,0.00019249,2]
[312027954,1705560638230,-9970.06595329,0.0001925,2]
[312027955,1705560638243,-2137.86886367,0.0001925,2]
[312027956,1705560638255,-1000.0,0.00019256,2]
[312027957,1705560638267,-150.0,0.00019256,2]
[312027958,1705560638278,-150.0,0.00019256,2]
[312027959,1705560638290,-174.95897668,0.00019266,2]
[312027960,1705560638303,-223.6487533,0.00019333,2]
[312027961,1705560638316,-223.6487533,0.00019517,2]
[312027962,1705560638328,-223.6487533,0.000197,2]
[312027963,1705560638339,-223.6487533,0.00019883,2]
[312027964,1705560638350,-223.6487533,0.00020066,2]
[312027965,1705560638361,-360.0,0.00020248,2]
[312027966,1705560638376,-223.6487533,0.0002025,2]
[312027967,1705560638387,-150.0,0.00020283,2]
[312027968,1705560638400,-500.0,0.00020283,2]
[312027969,1705560638416,-6713.8,0.00020304,2]
[312027970,1705560638430,-200.0,0.00020324,2]
[312027971,1705560638442,-2705.0,0.00020459,2]
[312027973,1705560638453,-299.28,0.00020491,2]
[312027976,1705560638465,-754.22583188,0.000205,2]
[312027977,1705560638476,-1852.42,0.00020523,2]
[312027978,1705560638488,-636.43,0.00020618,2]
[312027979,1705560638501,-250.0,0.00020631,2]
[312027980,1705560638515,-597.15,0.0002065,2]
[312027981,1705560638527,-150.0,0.00020685,2]
[312027982,1705560638543,-158.16,0.00020703,2]
[312027983,1705560638556,-4063.37703378,0.00020717,2]
[312027984,1705560638572,-3355.883,0.00020717,2]
[312027985,1705560641148,-527.95807681,0.00019248,2]
[312027986,1705560641160,-262.57,0.00020066,2]
[312027987,1705560641172,-2073.55631358,0.00020717,2]
[312027988,1705560641186,-738.70204546,0.00020717,2]
[312027989,1705560641309,-11120.26590994,0.00020717,2]
[312027990,1705560641324,-253.85249714,0.00020717,2]
[312027991,1705560641375,-2294.3632001,0.00020717,2]
[312027992,1705560641386,-776.21,0.00020718,2]
[312027993,1705560641398,-2000.0,0.00020723,2]
[312027994,1705560641410,-597.52,0.0002073,2]
[312027995,1705560641422,-172.99,0.00020824,2]
[312027996,1705560641433,-549.92,0.00020889,2]
[312027999,1705560641444,-417.36,0.00021048,2]
[312028000,1705560641456,-172.99,0.00021185,2]
[312028001,1705560641467,-1272.43,0.00021191,2]
[312028002,1705560641480,-155.59,0.0002121,2]
[312028003,1705560641491,-207.0,0.00021216,5]
[312028004,1705560641505,-158.16,0.00021221,2]
[312028005,1705560641517,-640.0,0.00021375,2]
[312028006,1705560641528,-820.63501258,0.00021501,2]
[312028007,1705560641539,-162.93,0.00021509,2]
[312028008,1705560641551,-299.28,0.00021516,2]
[312028009,1705560641562,-172.99,0.00021547,2]
[312028010,1705560641572,-150.0,0.00021651,2]
[312028011,1705560641584,-597.52,0.00021708,2]
[312028012,1705560641595,-158.16,0.00021739,2]
[312028013,1705560641606,-172.99,0.00021909,2]
[312028014,1705560641617,-152.48895535,0.00021917,7]
[312028015,1705560641628,-286.18714611,0.00021917,7]
[312028016,1705560641640,-199.27005393,0.00021917,7]
[312028017,1705560641653,-155.59,0.00021917,2]
[312028018,1705560641664,-441.48,0.00021918,2]
[312028019,1705560641675,-2500.0,0.00021918,3]
[312028020,1705560641687,-250.0,0.00021918,2]
[312028021,1705560641698,-663.7218,0.00021984,2]
[312028022,1705560641709,-150.0,0.00021993,2]
[312028023,1705560641720,-10000.0,0.00022,2]
[312028024,1705560641731,-3110.0,0.00022,2]
[312028025,1705560641743,-2158.32714845,0.00022,2]
[312028026,1705560641757,-1041.88400935,0.00022,2]
[312028027,1705560641768,-26775.0,0.00022,2]
[312028028,1705560641780,-486.99424255,0.00022084,2]
[312028029,1705560641792,-59599.3537,0.00022084,2]
[312028030,1705560641804,-2056.2393,0.00022085,2]
[312028031,1705560641816,-1000.0,0.00022085,2]
[312028032,1705560641828,-417.36,0.00022101,2]
[312028033,1705560641839,-150.0,0.00022114,7]
[312028034,1705560641850,-150.0,0.00022114,7]
[312028035,1705560641862,-155.86402743,0.00022182,2]
[312028036,1705560641874,-238.87192888,0.00022182,2]
[312028037,1705560641886,-155.84293874,0.00022182,2]
[312028038,1705560641897,-155.6755511,0.00022182,2]
[312028039,1705560641908,-199.54016898,0.00022182,2]
[312028040,1705560641920,-1056.86295192,0.00022182,2]
[312028041,1705560641930,-525.73564689,0.00022182,2]
[312028042,1705560641941,-236.3222849,0.00022182,2]
[312028043,1705560641952,-156.10467187,0.00022182,2]
[312028044,1705560641963,-178.94185082,0.00022182,2]
[312028045,1705560641975,-157.57187705,0.00022182,2]
[312028046,1705560641986,-317.16029768,0.00022182,2]
[312028047,1705560641999,-155.44390996,0.00022182,2]
[312028048,1705560642010,-155.37470611,0.00022182,2]
[312028049,1705560642023,-155.34323689,0.00022182,2]
[312028050,1705560642034,-320.93418675,0.00022182,2]
[312028051,1705560642047,-156.03685715,0.00022182,2]
[312028052,1705560642058,-4574.31979399,0.00022182,2]
[312028053,1705560642071,-195.15582925,0.00022182,2]
[312028054,1705560642081,-454.19227176,0.00022182,2]
[312028055,1705560642092,-156.37274337,0.00022182,2]
[312028056,1705560642103,-276.72828138,0.00022182,2]
[312028057,1705560642115,-155.57206729,0.00022182,2]
[312028058,1705560642125,-243.80084375,0.00022182,2]
[312028059,1705560642137,-190.15020254,0.00022182,2]
[312028060,1705560642148,-155.59338945,0.00022182,2]
[312028061,1705560642159,-228.19394377,0.00022182,2]
[312028062,1705560642170,-652.57373136,0.00022182,2]
[312028063,1705560642182,-155.66267336,0.00022182,2]
[312028064,1705560642192,-387.1184404,0.00022182,2]
[312028065,1705560642205,-201.72693754,0.00022182,2]
[312028066,1705560642216,-917.86358238,0.00022182,2]
[312028067,1705560642226,-2152.94004867,0.00022182,2]
[312028068,1705560642237,-1364.76579719,0.00022182,2]
[312028069,1705560642248,-245.31677049,0.00022182,2]
[312028070,1705560642258,-246.99950823,0.00022182,2]
[312028071,1705560642268,-195.71392773,0.00022182,2]
[312028072,1705560642278,-297.38036013,0.00022182,2]
[312028073,1705560642290,-168.94582108,0.00022182,2]
[312028074,1705560642301,-161.47928395,0.00022182,2]
[312028075,1705560642311,-415.3614252,0.00022182,2]
[312028076,1705560642322,-481.37146398,0.00022182,2]
[312028077,1705560642333,-157.25159728,0.00022182,2]
[312028078,1705560642344,-603.95953432,0.00022182,2]
[312028079,1705560642355,-227.00303627,0.00022182,2]
[312028080,1705560642365,-2633.97324505,0.00022182,2]
[312028081,1705560642376,-113.39419672,0.00022182,2]
[312028082,1705560642391,-154.51422744,0.00022182,2]
[312028083,1705560642401,-856.36066174,0.00022182,2]
[312028084,1705560642412,-1317.93249377,0.00022182,2]
[312028085,1705560642423,-4429.59,0.00022182,2]
[312028086,1705560642435,-500.0,0.00022182,2]
[312028087,1705560642447,-1233.68,0.00022182,2]
[312028088,1705560642458,-500.0,0.00022182,2]
[312028089,1705560642468,-500.0,0.00022182,2]
[312028090,1705560642478,-500.0,0.00022182,2]
[312028091,1705560642489,-500.0,0.00022182,2]
[312028092,1705560642501,-753.84,0.00022182,2]
[312028093,1705560642516,-8497.5,0.00022182,2]
[312028094,1705560642526,-615.1,0.00022182,2]
[312028095,1705560642537,-500.0,0.00022182,2]
[312028096,1705560642547,-600.93,0.00022182,2]
[312028097,1705560642559,-500.0,0.00022182,2]
[312028098,1705560642570,-225.1794754,0.00022182,2]
[312028099,1705560642580,-1440.76,0.00022182,2]
[312028100,1705560642592,-657.15,0.00022182,2]
[312028101,1705560642604,-706.66,0.00022182,2]
[312028102,1705560642615,-620.24,0.00022182,2]
[312028103,1705560642626,-802.68,0.00022182,2]
[312028104,1705560642638,-500.0,0.00022182,2]
[312028105,1705560642649,-594.93,0.00022182,2]
[312028106,1705560642660,-500.0,0.00022182,2]
[312028107,1705560642672,-500.0,0.00022182,2]
[312028108,1705560642683,-895.4,0.00022182,2]
[312028109,1705560642695,-1323.99,0.00022182,2]
[312028110,1705560642708,-500.0,0.00022182,2]
[312028111,1705560642719,-905.82,0.00022182,5]
[312028112,1705560642730,-500.0,0.00022182,2]
[312028113,1705560642740,-2058.96,0.00022182,2]
[312028114,1705560642751,-500.0,0.00022182,2]
[312028115,1705560642761,-500.0,0.00022182,2]
[312028116,1705560642772,-500.0,0.00022182,2]
[312028119,1705560642784,-500.0,0.00022182,2]